[Event "XXVII RUS-chT Women 2020"]
[Site "Sochi"]
[Date "2020.11.19"]
[Round "1.18"]
[White "Lysenko, Margarita"]
[Black "Baiburina, Kamilla"]
[Result "1/2-1/2"]
[ECO "E17"]
[WhiteElo "2237"]
[BlackElo "1805"]
[Annotator "NA"]
[PlyCount "81"]
[EventDate "2020.11.19"]
[EventType "team-tourn"]
[EventCountry "RUS"]
[SourceTitle "playchess.com"]
[Source "ChessBase"]
[SourceQuality "1"]
[TimeControl "40/5400+30:1800+30"]

1. d4 {[%emt 0:00:00]} e6 {[%emt 0:00:00]} 2. c4 {[%emt 0:01:42]} b6 {[%emt 0:00:00]} 3. Nf3 {[%emt 0:05:59]} Nf6 {[%emt 0:00:00]} 4. g3 {[%emt 0:01:38]} Bb7 {[%emt 0:00:51]} 5. Bg2 {[%emt 0:00:09]} Be7 {[%emt 0:00:17]} 6. O-O {[%emt 0:01:00]} O-O {[%emt 0:00:12]} 7. Re1 {[%emt 0:06:11]} d5 {[%emt 0:13:06]} 8. cxd5 {[%emt 0:05:35]} exd5 {[%emt 0:00:12]} 9. Nc3 {[%emt 0:00:17]} Nbd7 {[%emt 0:02:29]} 10. Ne5 {[%emt 0:13:49]} c5 {[%emt 0:08:51]} 11. Qa4 {[%emt 0:23:55]} cxd4 {[%emt 0:18:24]} 12. Nxd7 {[%emt 0:00:33]} Qxd7 {[%emt 0:03:53]} 13. Qxd7 {[%emt 0:04:32]} Nxd7 {[%emt 0:00:05]} 14. Nxd5 {[%emt 0:02:59]} Bxd5 {[%emt 0:02:35]} 15. Bxd5 {[%emt 0:00:02]} Rad8 {[%emt 0:01:09]} 16. Rd1 {[%emt 0:09:25]} Bf6 {[%emt 0:03:43]} 17. Kf1 {[%emt 0:07:34]} Rfe8 {[%emt 0:06:02]} 18. Bc4 {[%emt 0:04:19]} Nc5 {[%emt 0:08:33]} 19. Bd3 {[%emt 0:02:33]} Re7 {[%emt 0:06:35]} 20. Bd2 {[%emt 0:00:39]} Nxd3 {[%emt 0:03:35]} 21. exd3 {[%emt 0:00:03]} Rc8 {[%emt 0:01:30]} 22. Rac1 {[%emt 0:00:56]} Rec7 {[%emt 0:00:30]} 23. Ke2 {[%emt 0:05:21]} Kf8 {[%emt 0:01:37]} 24. Rxc7 {[%emt 0:01:20]} Rxc7 {[%emt 0:00:02]} 25. Rc1 {[%emt 0:00:11]} Rxc1 {[%emt 0:00:19]} 26. Bxc1 {[%emt 0:00:01]} Ke7 {[%emt 0:00:37]} 27. Kf3 {[%emt 0:01:00]} g6 {[%emt 0:05:21]} 28. g4 {[%emt 0:01:11]} Be5 {[%emt 0:02:21]} 29. h3 {[%emt 0:00:40]} Ke6 {[%emt 0:01:31]} 30. Ke4 {[%emt 0:00:34]} f5+ {[%emt 0:00:45]} 31. gxf5+ {[%emt 0:00:15]} gxf5+ {[%emt 0:00:03]} 32. Kf3 {[%emt 0:00:06]} b5 {[%emt 0:02:16]} 33. Bd2 {[%emt 0:00:48]} Bd6 {[%emt 0:01:16]} 34. Bf4 {[%emt 0:00:37]} Bxf4 {[%emt 0:01:20]} 35. Kxf4 {[%emt 0:00:02]} Kf6 {[%emt 0:00:32]} 36. b4 {[%emt 0:00:56]} h6 {[%emt 0:00:25]} 37. f3 {[%emt 0:00:44]} Ke6 {[%emt 0:00:18]} 38. Kg3 {[%emt 0:00:43]} Kf6 {[%emt 0:00:10]} 39. Kh4 {[%emt 0:00:19]} Kg6 {[%emt 0:00:23]} 40. Kg3 {[%emt 0:00:00]} Kf6 {[%emt 0:00:00]} 41. Kf4 {[%emt 0:01:21]} 1/2-1/2

[Event "XXVII RUS-chT Women 2020"]
[Site "Sochi"]
[Date "2020.11.19"]
[Round "1.19"]
[White "Idrisova, Roza"]
[Black "Sudakova, Irina"]
[Result "1/2-1/2"]
[ECO "D00"]
[WhiteElo "1960"]
[BlackElo "2288"]
[Annotator "NA"]
[PlyCount "88"]
[EventDate "2020.11.19"]
[EventType "team-tourn"]
[EventCountry "RUS"]
[SourceTitle "playchess.com"]
[Source "ChessBase"]
[SourceQuality "1"]
[TimeControl "40/5400+30:1800+30"]

1. d4 {[%emt 0:00:00]} d5 {[%emt 0:00:00]} 2. Bf4 {[%emt 0:00:00]} Nf6 {[%emt 0:00:23]} 3. e3 {[%emt 0:00:24]} e6 {[%emt 0:01:44]} 4. c4 {[%emt 0:02:02]} c5 {[%emt 0:04:28]} 5. Nf3 {[%emt 0:09:05]} Nc6 {[%emt 0:02:42]} 6. Nc3 {[%emt 0:04:05]} a6 {[%emt 0:11:28]} 7. cxd5 {[%emt 0:01:33]} Nxd5 {[%emt 0:02:34]} 8. Nxd5 {[%emt 0:02:21]} Qxd5 {[%emt 0:00:21]} 9. dxc5 {[%emt 0:03:12]} Qxd1+ {[%emt 0:04:20]} 10. Rxd1 {[%emt 0:00:30]} Bxc5 {[%emt 0:00:17]} 11. a3 $11 {[%emt 0:06:56]} f6 {[%emt 0:02:57]} 12. b4 {[%emt 0:04:21]} Be7 {[%emt 0:00:33]} 13. Bc7 {[%emt 0:00:57]} b5 {[%emt 0:10:05]} 14. Be2 {[%emt 0:03:58]} Ra7 {[%emt 0:05:15]} 15. Bd6 {[%emt 0:03:02]} Rd7 {[%emt 0:07:31]} 16. Bxe7 {[%emt 0:00:47]} Rxd1+ {[%emt 0:04:05]} 17. Kxd1 {[%emt 0:01:31]} Kxe7 {[%emt 0:00:52]} 18. Kc2 {[%emt 0:00:38]} Bb7 {[%emt 0:04:39]} 19. Rc1 {[%emt 0:03:57]} g5 {[%emt 0:04:33]} 20. Kb2 {[%emt 0:02:38]} Rd8 {[%emt 0:03:56]} 21. h4 {[%emt 0:04:44]} g4 {[%emt 0:02:33]} 22. Ne1 {[%emt 0:00:36]} Ne5 {[%emt 0:05:15]} 23. Rc7+ {[%emt 0:00:43]} Rd7 {[%emt 0:00:05]} 24. Rxd7+ {[%emt 0:00:17]} Kxd7 {[%emt 0:00:06]} 25. Kc3 {[%emt 0:00:53]} Bd5 {[%emt 0:08:46]} 26. Nd3 {[%emt 0:07:28]} Nxd3 {[%emt 0:02:14]} 27. Bxd3 {[%emt 0:00:29]} h6 {[%emt 0:00:39]} 28. g3 {[%emt 0:00:24]} Kd6 {[%emt 0:01:01]} 29. Kd4 {[%emt 0:02:35]} e5+ {[%emt 0:03:51]} 30. Kc3 {[%emt 0:00:09]} Be6 {[%emt 0:00:06]} 31. Be4 {[%emt 0:01:12]} f5 {[%emt 0:00:45]} 32. Bc2 {[%emt 0:04:29]} e4 {[%emt 0:05:58]} 33. Kd4 {[%emt 0:00:18]} Bd5 {[%emt 0:00:16]} 34. a4 {[%emt 0:00:49]} Be6 {[%emt 0:00:04]} 35. axb5 {[%emt 0:00:30]} axb5 {[%emt 0:00:04]} 36. Bd1 {[%emt 0:02:35]} Bf7 {[%emt 0:00:15]} 37. Be2 {[%emt 0:00:26]} Be8 {[%emt 0:00:03]} 38. Bf1 {[%emt 0:00:29]} Bd7 {[%emt 0:00:07]} 39. Be2 {[%emt 0:00:15]} Be8 {[%emt 0:00:07]} 40. Bd1 {[%emt 0:00:00]} Bf7 {[%emt 0:00:00]} 41. Be2 {[%emt 0:00:40]} Be8 {[%emt 0:00:13]} 42. Bf1 {[%emt 0:00:17]} Bd7 {[%emt 0:00:22]} 43. Be2 {[%emt 0:00:14]} Be8 {[%emt 0:00:24]} 44. Bd1 {[%emt 0:00:13]} Bf7 {[%emt 0:00:10]} 1/2-1/2

[Event "XXVII RUS-chT Women 2020"]
[Site "Sochi"]
[Date "2020.11.19"]
[Round "1.20"]
[White "Smirnova, Ekaterina"]
[Black "Absalyamova, Karina"]
[Result "1-0"]
[ECO "E16"]
[WhiteElo "2239"]
[BlackElo "1884"]
[Annotator "ChessBase"]
[PlyCount "79"]
[EventDate "2020.11.19"]
[EventType "team-tourn"]
[EventCountry "RUS"]
[SourceTitle "playchess.com"]
[Source "ChessBase"]
[SourceQuality "1"]
[TimeControl "40/5400+30:1800+30"]

1. d4 {[%emt 0:00:00]} Nf6 {[%emt 0:00:00]} 2. c4 {[%emt 0:00:00]} e6 {[%emt 0:00:00]} 3. Nf3 {[%emt 0:00:00]} Bb4+ {[%emt 0:00:00]} 4. Bd2 {[%emt 0:00:00]} Qe7 {[%emt 0:00:00]} 5. Nc3 {[%emt 0:00:36]} Bxc3 {[%emt 0:01:04]} 6. Bxc3 {[%emt 0:00:12]} Ne4 {[%emt 0:00:03]} 7. Qc2 {[%emt 0:00:16]} Nxc3 {[%emt 0:00:09]} 8. Qxc3 {[%emt 0:00:10]} d6 {[%emt 0:00:15]} 9. e4 {[%emt 0:02:05]} a5 {[%emt 0:02:13]} 10. Be2 {[%emt 0:02:37]} O-O {[%emt 0:00:41]} 11. O-O {[%emt 0:00:08]} Nd7 {[%emt 0:02:05]} 12. Rfe1 {[%emt 0:01:27]} e5 {[%emt 0:02:08]} 13. Bf1 {[%emt 0:00:25]} Re8 {[%emt 0:06:02]} 14. b3 {[%emt 0:05:23]} exd4 {[%emt 0:07:25]} 15. Nxd4 {[%emt 0:00:50]} Ne5 {[%emt 0:01:40]} 16. Rad1 {[%emt 0:02:14]} Bd7 {[%emt 0:03:16]} 17. f4 {[%emt 0:07:10]} Ng4 {[%emt 0:07:41]} 18. h3 {[%emt 0:04:03]} Nh6 {[%emt 0:03:45]} 19. g4 {[%emt 0:11:20]} f6 {[%emt 0:07:56]} 20. Bg2 {[%emt 0:00:19]} Nf7 {[%emt 0:01:08]} 21. c5 {[%emt 0:05:43]} Ra7 {[%emt 0:23:57]} 22. Nf5 {[%emt 0:02:27]} Bxf5 {[%emt 0:05:41]} 23. exf5 {[%emt 0:02:18]} Qd8 {[%emt 0:00:02]} 24. Rxe8+ {[%emt 0:01:29]} Qxe8 {[%emt 0:00:02]} 25. cxd6 {[%emt 0:00:29]} cxd6 {[%emt 0:01:34]} 26. Re1 {[%emt 0:01:17]} Qd7 {[%emt 0:01:43]} 27. Qc7 {[%emt 0:01:54]} Qd8 {[%emt 0:05:05]} 28. Qxd8+ {[%emt 0:00:11]} Nxd8 {[%emt 0:00:05]} 29. Re8+ {[%emt 0:00:04]} Kf7 {[%emt 0:00:01]} 30. Rxd8 {[%emt 0:00:06]} a4 {[%emt 0:00:34]} 31. bxa4 {[%emt 0:00:29]} Ke7 {[%emt 0:00:48]} 32. Rb8 {[%emt 0:00:28]} Rxa4 {[%emt 0:00:13]} 33. Rxb7+ {[%emt 0:00:05]} Kf8 {[%emt 0:00:04]} 34. Bd5 {[%emt 0:00:18]} Rxf4 {[%emt 0:00:22]} 35. Rf7+ {[%emt 0:00:10]} Ke8 {[%emt 0:00:14]} 36. Rxg7 {[%emt 0:00:11]} h5 {[%emt 0:00:12]} 37. gxh5 {[%emt 0:02:02]} Rxf5 {[%emt 0:00:05]} 38. h6 {[%emt 0:00:46]} Rxd5 {[%emt 0:02:07]} 39. h7 {[%emt 0:00:08]} Rh5 {[%emt 0:00:02]} 40. Rg8+ {[%emt 0:00:00]} 1-0

[Event "XXVII RUS-chT Women 2020"]
[Site "Sochi"]
[Date "2020.11.19"]
[Round "1.21"]
[White "Shafigullina, Zarina"]
[Black "Goltseva, Ekaterina"]
[Result "1/2-1/2"]
[ECO "A46"]
[WhiteElo "2302"]
[BlackElo "2306"]
[Annotator "ChessBase"]
[PlyCount "149"]
[EventDate "2020.11.19"]
[EventType "team-tourn"]
[EventCountry "RUS"]
[SourceTitle "playchess.com"]
[Source "ChessBase"]
[SourceQuality "1"]
[TimeControl "40/5400+30:1800+30"]

1. d4 {[%emt 0:00:00]} Nf6 {[%emt 0:00:00]} 2. Nf3 {[%emt 0:00:00]} e6 {[%emt 0:00:00]} 3. g3 {[%emt 0:00:00]} c5 {[%emt 0:00:08]} 4. Bg2 {[%emt 0:00:02]} cxd4 {[%emt 0:00:12]} 5. O-O {[%emt 0:00:09]} d5 {[%emt 0:01:01]} 6. Nxd4 {[%emt 0:00:38]} e5 {[%emt 0:00:55]} 7. Nf3 {[%emt 0:01:30]} Nc6 {[%emt 0:02:39]} 8. c4 {[%emt 0:00:26]} d4 {[%emt 0:03:06]} 9. e3 {[%emt 0:00:11]} Be7 {[%emt 0:00:15]} 10. exd4 {[%emt 0:02:14]} exd4 {[%emt 0:00:05]} 11. b3 {[%emt 0:05:55]} O-O {[%emt 0:01:22]} 12. Bb2 {[%emt 0:00:19]} Bc5 {[%emt 0:00:46]} 13. Na3 {[%emt 0:06:12]} Bf5 {[%emt 0:40:40]} 14. Qd2 {[%emt 0:08:33]} Qb6 {[%emt 0:15:27]} 15. Rad1 {[%emt 0:08:38]} Rad8 {[%emt 0:03:35]} 16. Nb5 {[%emt 0:10:33]} Bg4 {[%emt 0:04:03]} 17. Qf4 {[%emt 0:08:06]} a6 {[%emt 0:02:29]} 18. Nbxd4 {[%emt 0:02:27]} Nxd4 {[%emt 0:13:54]} 19. Bxd4 {[%emt 0:00:24]} Rxd4 {[%emt 0:00:45]} 20. Rxd4 {[%emt 0:00:56]} Bxf3 {[%emt 0:00:06]} 21. Rd2 {[%emt 0:00:18]} Bxg2 {[%emt 0:00:26]} 22. Kxg2 {[%emt 0:00:06]} Re8 {[%emt 0:00:44]} 23. Qf3 {[%emt 0:01:54]} h6 {[%emt 0:01:03]} 24. Rfd1 {[%emt 0:02:01]} a5 {[%emt 0:02:25]} 25. Re2 {[%emt 0:03:32]} Rxe2 {[%emt 0:02:14]} 26. Qxe2 {[%emt 0:00:04]} Qc7 {[%emt 0:00:46]} 27. Qd3 {[%emt 0:03:10]} Qc6+ {[%emt 0:00:40]} 28. Qf3 {[%emt 0:00:14]} Qc7 {[%emt 0:00:25]} 29. Qd3 {[%emt 0:04:18]} Qe5 {[%emt 0:03:25]} 30. Qd8+ {[%emt 0:02:40]} Kh7 {[%emt 0:00:03]} 31. Qd3+ {[%emt 0:00:08]} g6 {[%emt 0:00:33]} 32. Rd2 {[%emt 0:01:59]} b6 {[%emt 0:00:52]} 33. Re2 {[%emt 0:00:18]} Qc7 {[%emt 0:00:19]} 34. h3 {[%emt 0:02:30]} Kg7 {[%emt 0:00:26]} 35. Qc3 {[%emt 0:02:36]} Qd6 {[%emt 0:00:27]} 36. Rd2 {[%emt 0:02:46]} Qe6 {[%emt 0:00:23]} 37. Rd3 {[%emt 0:02:24]} Qe4+ {[%emt 0:00:44]} 38. Rf3 {[%emt 0:00:07]} Bd4 {[%emt 0:00:22]} 39. Qd3 {[%emt 0:00:33]} Qe5 {[%emt 0:00:23]} 40. Rf4 {[%emt 0:00:00]} Bc5 {[%emt 0:00:00]} 41. Rf3 {[%emt 0:08:34]} h5 {[%emt 0:10:28]} 42. Qd2 {[%emt 0:03:36]} Qe4 {[%emt 0:12:24]} 43. Qf4 {[%emt 0:04:12]} Qe6 {[%emt 0:00:56]} 44. Rc3 {[%emt 0:05:13]} Ne4 {[%emt 0:03:08]} 45. Rc2 {[%emt 0:00:03]} g5 {[%emt 0:01:27]} 46. Qf3 {[%emt 0:06:08]} g4 {[%emt 0:01:40]} 47. hxg4 {[%emt 0:00:04]} hxg4 {[%emt 0:00:03]} 48. Qf4 {[%emt 0:00:06]} f5 {[%emt 0:03:29]} 49. Re2 {[%emt 0:00:46]} Kg6 {[%emt 0:00:36]} 50. f3 {[%emt 0:02:55]} Bd6 {[%emt 0:01:18]} 51. Qe3 {[%emt 0:00:13]} gxf3+ {[%emt 0:00:05]} 52. Qxf3 {[%emt 0:00:04]} Qf6 {[%emt 0:01:29]} 53. g4 {[%emt 0:01:02]} Ng3 {[%emt 0:00:38]} 54. gxf5+ {[%emt 0:00:19]} Nxf5 {[%emt 0:00:21]} 55. Qg4+ {[%emt 0:00:44]} Kf7 {[%emt 0:00:16]} 56. Qh5+ {[%emt 0:02:53]} Kg7 {[%emt 0:00:37]} 57. Re4 {[%emt 0:02:07]} Qb2+ {[%emt 0:00:34]} 58. Re2 {[%emt 0:01:19]} Nh4+ {[%emt 0:00:30]} 59. Kf1 {[%emt 0:03:23]} Qc1+ {[%emt 0:00:25]} 60. Kf2 {[%emt 0:03:52]} Qf4+ {[%emt 0:00:19]} 61. Ke1 {[%emt 0:00:31]} Qc1+ {[%emt 0:00:37]} 62. Kf2 {[%emt 0:00:05]} Qf4+ {[%emt 0:00:21]} 63. Ke1 {[%emt 0:00:08]} Bb4+ {[%emt 0:00:29]} 64. Kd1 Qd4+ {[%emt 0:00:26]} 65. Kc2 {[%emt 0:00:38]} Qc3+ {[%emt 0:00:42]} 66. Kb1 {[%emt 0:01:22]} Qd3+ {[%emt 0:00:11]} 67. Rc2 {[%emt 0:00:06]} Nf3 {[%emt 0:00:40]} 68. Qg4+ {[%emt 0:01:03]} Kh7 {[%emt 0:01:09]} 69. Kb2 {[%emt 0:04:09]} Bf8 {[%emt 0:00:32]} 70. Qh5+ {[%emt 0:01:05]} Kg7 {[%emt 0:00:26]} 71. Rg2+ {[%emt 0:01:38]} Kf6 {[%emt 0:00:05]} 72. Qh8+ {[%emt 0:02:04]} Kf7 {[%emt 0:00:46]} 73. Qh5+ {[%emt 0:02:26]} Kf6 {[%emt 0:00:08]} 74. Qh8+ {[%emt 0:00:24]} Kf7 {[%emt 0:00:04]} 75. Qh5+ {[%emt 0:02:29]} 1/2-1/2

[Event "XXVII RUS-chT Women 2020"]
[Site "Sochi"]
[Date "2020.11.19"]
[Round "1.22"]
[White "Vifleemskaia, Svetlana"]
[Black "Yakimova, Mariya"]
[Result "0-1"]
[ECO "B30"]
[WhiteElo "1911"]
[BlackElo "2244"]
[Annotator "NA"]
[PlyCount "66"]
[EventDate "2020.11.19"]
[EventType "team-tourn"]
[EventCountry "RUS"]
[SourceTitle "playchess.com"]
[Source "ChessBase"]
[SourceQuality "1"]
[TimeControl "40/5400+30:1800+30"]

1. e4 {[%emt 0:00:00]} c5 {[%emt 0:00:00]} 2. Nf3 {[%emt 0:00:00]} Nc6 {[%emt 0:00:00]} 3. Bb5 {[%emt 0:00:00]} d6 {[%emt 0:00:00]} 4. O-O {[%emt 0:00:48]} Bd7 {[%emt 0:00:00]} 5. Re1 {[%emt 0:00:49]} Nf6 {[%emt 0:00:00]} 6. c3 {[%emt 0:00:49]} a6 {[%emt 0:00:00]} 7. Bf1 {[%emt 0:00:07]} Bg4 {[%emt 0:00:10]} 8. h3 {[%emt 0:00:41]} Bxf3 {[%emt 0:00:07]} 9. Qxf3 {[%emt 0:00:04]} e6 {[%emt 0:00:05]} 10. Qd1 {[%emt 0:00:59]} d5 {[%emt 0:01:13]} 11. e5 {[%emt 0:16:46]} Nd7 {[%emt 0:00:07]} 12. f4 {[%emt 0:07:01]} Qh4 {[%emt 0:03:25]} 13. d3 {[%emt 0:02:32]} g5 {[%emt 0:02:13]} 14. c4 {[%emt 0:25:21]} dxc4 {[%emt 0:08:57]} 15. Re4 {[%emt 0:02:02]} cxd3 {[%emt 0:03:04]} 16. Bxd3 {[%emt 0:02:30]} gxf4 {[%emt 0:02:27]} 17. Bxf4 {[%emt 0:05:04]} Rg8 {[%emt 0:06:44]} 18. Qf3 {[%emt 0:12:14]} c4 {[%emt 0:03:35]} 19. Bxc4 {[%emt 0:10:26]} Bc5+ {[%emt 0:07:09]} 20. Kh2 {[%emt 0:04:11]} Nd4 {[%emt 0:03:22]} 21. Rxd4 {[%emt 0:04:49]} Bxd4 {[%emt 0:00:05]} 22. g3 {[%emt 0:00:32]} Qd8 {[%emt 0:01:05]} 23. Qb3 {[%emt 0:02:25]} Nc5 {[%emt 0:02:36]} 24. Qc2 {[%emt 0:00:26]} Qc7 {[%emt 0:02:13]} 25. Nd2 {[%emt 0:01:03]} Bxe5 {[%emt 0:01:23]} 26. Rf1 {[%emt 0:00:19]} Bxf4 {[%emt 0:01:59]} 27. Rxf4 {[%emt 0:00:16]} O-O-O {[%emt 0:05:26]} 28. b4 {[%emt 0:00:09]} Nd7 {[%emt 0:01:28]} 29. Qb3 {[%emt 0:00:50]} Ne5 {[%emt 0:00:34]} 30. Nf1 {[%emt 0:00:37]} Kb8 {[%emt 0:00:51]} 31. Be2 {[%emt 0:00:17]} Nc6 {[%emt 0:00:37]} 32. Bc4 {[%emt 0:00:49]} Nd4 {[%emt 0:00:53]} 33. Qc3 {[%emt 0:00:22]} Ne2 0-1

[Event "XXVII RUS-chT Women 2020"]
[Site "Sochi"]
[Date "2020.11.19"]
[Round "1.23"]
[White "Nasyrova, Ekaterina"]
[Black "Zavivaeva, Emilia"]
[Result "1-0"]
[ECO "A05"]
[WhiteElo "2261"]
[BlackElo "1790"]
[Annotator "ChessBase"]
[PlyCount "45"]
[EventDate "2020.11.19"]
[EventType "team-tourn"]
[EventCountry "RUS"]
[SourceTitle "playchess.com"]
[Source "ChessBase"]
[SourceQuality "1"]
[TimeControl "40/5400+30:1800+30"]

1. Nf3 {[%emt 0:00:00]} Nf6 {[%emt 0:00:00]} 2. c4 {[%emt 0:00:00]} e6 {[%emt 0:00:00]} 3. Nc3 {[%emt 0:00:00]} d5 {[%emt 0:00:07]} 4. e3 {[%emt 0:00:02]} Be7 {[%emt 0:00:19]} 5. Be2 {[%emt 0:00:26]} O-O {[%emt 0:00:11]} 6. O-O {[%emt 0:00:08]} b6 {[%emt 0:00:35]} 7. b3 {[%emt 0:00:54]} Bb7 {[%emt 0:00:39]} 8. Bb2 {[%emt 0:00:36]} c5 {[%emt 0:00:17]} 9. cxd5 {[%emt 0:03:15]} exd5 {[%emt 0:00:32]} 10. d4 {[%emt 0:00:25]} Nc6 {[%emt 0:03:48]} 11. Rc1 {[%emt 0:01:46]} Rc8 {[%emt 0:02:32]} 12. Bd3 {[%emt 0:07:03]} Bd6 {[%emt 0:03:07]} 13. Bf5 {[%emt 0:00:58]} Rc7 {[%emt 0:04:53]} 14. Nb5 {[%emt 0:01:38]} Ba6 {[%emt 0:01:07]} 15. Nxc7 {[%emt 0:02:37]} Bxf1 {[%emt 0:01:16]} 16. Kxf1 {[%emt 0:02:00]} Bxc7 {[%emt 0:03:26]} 17. dxc5 {[%emt 0:00:18]} bxc5 {[%emt 0:00:56]} 18. Rxc5 {[%emt 0:00:31]} Qd6 {[%emt 0:01:12]} 19. Qc1 {[%emt 0:00:31]} Ne7 {[%emt 0:04:13]} 20. Bxh7+ {[%emt 0:03:48]} Kxh7 {[%emt 0:03:43]} 21. Rxc7 {[%emt 0:00:15]} Ne4 {[%emt 0:00:11]} 22. Kg1 {[%emt 0:00:46]} a5 {[%emt 0:03:46]} 23. Ba3 {[%emt 0:00:26]} 1-0

[Event "XXVII RUS-chT Women 2020"]
[Site "Sochi"]
[Date "2020.11.19"]
[Round "1.24"]
[White "Zavivaeva, Evelina"]
[Black "Bulatova, Kamaliya"]
[Result "0-1"]
[ECO "B53"]
[WhiteElo "1589"]
[BlackElo "2143"]
[Annotator "NA"]
[PlyCount "54"]
[EventDate "2020.11.19"]
[EventType "team-tourn"]
[EventCountry "RUS"]
[SourceTitle "playchess.com"]
[Source "ChessBase"]
[SourceQuality "1"]
[TimeControl "40/5400+30:1800+30"]

1. e4 {[%emt 0:00:00]} c5 {[%emt 0:00:00]} 2. Nf3 {[%emt 0:00:00]} d6 {[%emt 0:00:00]} 3. d4 {[%emt 0:00:01]} cxd4 {[%emt 0:00:00]} 4. Qxd4 {[%emt 0:00:09]} Nc6 {[%emt 0:00:00]} 5. Qe3 $11 {[%emt 0:00:10]} g6 {[%emt 0:06:12]} 6. c4 {[%emt 0:00:19]} Bg7 {[%emt 0:00:07]} 7. Be2 {[%emt 0:00:27]} Nf6 {[%emt 0:00:12]} 8. Nc3 {[%emt 0:00:31]} O-O {[%emt 0:00:44]} 9. O-O {[%emt 0:00:15]} Bg4 {[%emt 0:08:29]} 10. Rb1 {[%emt 0:01:45]} Rc8 {[%emt 0:03:22]} 11. b3 {[%emt 0:00:59]} a6 {[%emt 0:01:01]} 12. Bb2 {[%emt 0:00:56]} Qa5 {[%emt 0:01:57]} 13. Qd2 {[%emt 0:06:42]} Bxf3 {[%emt 0:03:52]} 14. Bxf3 {[%emt 0:00:16]} b5 {[%emt 0:03:08]} 15. cxb5 {[%emt 0:01:34]} axb5 {[%emt 0:00:15]} 16. Rfd1 {[%emt 0:04:05]} Ne5 {[%emt 0:14:46]} 17. Nd5 {[%emt 0:12:19]} Qa7 {[%emt 0:04:50]} 18. Qe2 {[%emt 0:04:57]} Nxd5 {[%emt 0:03:22]} 19. Bxe5 {[%emt 0:11:55]} Bxe5 {[%emt 0:01:18]} 20. Rxd5 {[%emt 0:04:05]} b4 {[%emt 0:00:55]} 21. Rb5 {[%emt 0:03:36]} Qa3 {[%emt 0:08:12]} 22. Qd2 {[%emt 0:04:56]} Bc3 {[%emt 0:03:18]} 23. Qe2 {[%emt 0:02:47]} Rc7 {[%emt 0:00:44]} 24. e5 {[%emt 0:07:42]} Bxe5 {[%emt 0:02:09]} 25. Rb7 {[%emt 0:01:08]} Rc1+ {[%emt 0:03:37]} 26. Rxc1 {[%emt 0:00:39]} Qxc1+ {[%emt 0:00:04]} 27. Qf1 {[%emt 0:01:26]} Bxh2+ {[%emt 0:01:53]} 0-1

[Event "XXVII RUS-chT Women 2020"]
[Site "Sochi"]
[Date "2020.11.20"]
[Round "2.1"]
[White "Pogonina, Natalija"]
[Black "Vasilevich, Tatjana"]
[Result "1/2-1/2"]
[ECO "E15"]
[WhiteElo "2475"]
[BlackElo "2353"]
[Annotator "ChessBase"]
[PlyCount "72"]
[EventDate "2020.11.19"]
[EventType "team-tourn"]
[EventCountry "RUS"]
[SourceTitle "playchess.com"]
[Source "ChessBase"]
[SourceQuality "1"]
[TimeControl "40/5400+30:1800+30"]

1. d4 {[%emt 0:00:00]} Nf6 {[%emt 0:00:00]} 2. Nf3 {[%emt 0:00:00]} e6 {[%emt 0:00:00]} 3. c4 {[%emt 0:00:00]} b6 {[%emt 0:00:07]} 4. g3 {[%emt 0:00:06]} Ba6 {[%emt 0:00:11]} 5. b3 {[%emt 0:00:36]} b5 {[%emt 0:00:23]} 6. cxb5 {[%emt 0:09:32]} Bxb5 {[%emt 0:00:03]} 7. Bg2 {[%emt 0:00:07]} d5 {[%emt 0:00:18]} 8. O-O {[%emt 0:00:19]} Nbd7 {[%emt 0:00:13]} 9. Nc3 {[%emt 0:10:34]} Ba6 {[%emt 0:00:13]} 10. Bb2 {[%emt 0:00:05]} c5 {[%emt 0:00:21]} 11. a3 {[%emt 0:13:30]} Rc8 {[%emt 0:06:54]} 12. dxc5 {[%emt 0:15:34]} Bxc5 {[%emt 0:00:29]} 13. b4 {[%emt 0:00:15]} Bd6 {[%emt 0:11:46]} 14. Re1 {[%emt 0:02:09]} Bb7 {[%emt 0:02:09]} 15. e4 {[%emt 0:11:40]} dxe4 {[%emt 0:03:01]} 16. Qxd6 {[%emt 0:03:06]} exf3 {[%emt 0:01:55]} 17. Bf1 {[%emt 0:00:16]} a6 {[%emt 0:14:48]} 18. b5 {[%emt 0:11:30]} Nc5 {[%emt 0:03:42]} 19. Qxd8+ {[%emt 0:01:02]} Rxd8 {[%emt 0:02:30]} 20. bxa6 {[%emt 0:00:08]} Bxa6 {[%emt 0:03:56]} 21. Bxa6 {[%emt 0:05:44]} Nxa6 {[%emt 0:00:07]} 22. Ne4 {[%emt 0:01:27]} Nxe4 {[%emt 0:06:15]} 23. Rxe4 {[%emt 0:00:12]} O-O {[%emt 0:00:11]} 24. Re3 {[%emt 0:00:28]} Nc5 {[%emt 0:02:45]} 25. Rxf3 {[%emt 0:02:17]} Na4 {[%emt 0:01:40]} 26. Bc3 {[%emt 0:02:54]} Nxc3 {[%emt 0:07:26]} 27. Rxc3 {[%emt 0:00:05]} Rd5 {[%emt 0:00:27]} 28. a4 {[%emt 0:01:09]} Ra5 {[%emt 0:00:43]} 29. Rc7 {[%emt 0:01:34]} g5 {[%emt 0:02:37]} 30. Ra3 {[%emt 0:02:23]} Rfa8 {[%emt 0:12:36]} 31. Rf3 {[%emt 0:00:43]} Rf8 {[%emt 0:00:11]} 32. Rc4 {[%emt 0:00:54]} Rfa8 {[%emt 0:00:58]} 33. Rc7 {[%emt 0:01:51]} Rf8 {[%emt 0:00:08]} 34. Rc4 {[%emt 0:00:05]} Rfa8 {[%emt 0:00:11]} 35. Rc7 {[%emt 0:00:06]} Rf8 {[%emt 0:00:30]} 36. Rc4 {[%emt 0:00:04]} Rfa8 1/2-1/2